fUSD/lending_fUSD_20250702
["ID","MTS","AMOUNT","RATE_DAILY","PERIOD"]
[369079875,1751459463461,-460.0,0.0003315,12]
[369079876,1751459463471,-460.0,0.0003315,12]
[369079877,1751459463481,-1192.83,0.0003315,12]
[369079878,1751459463491,-460.0,0.0003315,12]
[369079879,1751459463502,-460.0,0.0003315,12]
[369079880,1751459463520,-1246.02,0.0003315,12]
[369079881,1751459463537,-614.18,0.0003315,12]
[369079882,1751459463547,-17410.03,0.0003315,12]
[369079883,1751459463561,-3890.23,0.0003315,12]
[369079884,1751459463571,-549.24,0.0003315,12]
[369079885,1751459463583,-1561.43,0.0003315,12]
[369079886,1751459463594,-520.0,0.0003315,12]
[369079887,1751459463607,-1114.96,0.0003315,12]
[369079888,1751459463618,-621.51,0.0003315,12]
[369079889,1751459463629,-3281.69,0.0003315,12]
[369079890,1751459463639,-460.0,0.0003315,12]
[369079891,1751459463649,-14179.41,0.0003315,12]
[369079892,1751459463659,-520.0,0.0003315,12]
[369079893,1751459463669,-460.0,0.0003315,12]
[369079894,1751459463679,-612.33,0.0003315,12]
[369079895,1751459463690,-1685.4,0.0003315,12]
[369079896,1751459463701,-460.0,0.0003315,12]
[369079897,1751459463711,-970.79,0.0003315,12]
[369079898,1751459463720,-1476.99,0.0003315,12]
[369079899,1751459463730,-1041.13,0.0003315,12]
[369079900,1751459463740,-460.0,0.0003315,12]
[369079901,1751459463750,-10032.7,0.0003315,12]
[369079902,1751459463759,-894.84,0.0003315,12]
[369079903,1751459463769,-2104.41,0.0003315,12]
[369079904,1751459463779,-461.61,0.0003315,12]
[369079905,1751459463789,-460.0,0.0003315,12]
[369079906,1751459463798,-484.34,0.0003315,12]
[369079907,1751459463808,-460.0,0.0003315,12]
[369079908,1751459463818,-4805.54,0.0003315,12]
[369079909,1751459463828,-846.63,0.0003315,12]
[369079910,1751459463838,-460.0,0.0003315,12]
[369079911,1751459463848,-2292.38,0.0003315,12]
[369079912,1751459463858,-460.0,0.0003315,12]
[369079913,1751459463868,-460.0,0.0003315,12]
[369079914,1751459463881,-3633.33,0.0003315,12]
[369079915,1751459463891,-1902.3,0.0003315,12]
[369079916,1751459463901,-2351.4,0.0003315,12]
[369079917,1751459463911,-460.0,0.0003315,12]
[369079918,1751459463921,-1105.33,0.0003315,12]
[369079919,1751459463931,-1628.23,0.0003315,12]
[369079920,1751459463942,-1174.03,0.0003315,12]
[369079921,1751459463952,-2289.32,0.0003315,12]
[369079922,1751459463962,-460.0,0.0003315,12]
[369079923,1751459463972,-520.90161288,0.0003315,12]
[369079924,1751459463982,-516.39871672,0.0003315,12]
[369079925,1751459463992,-898.36,0.0003315,12]
[369079926,1751459464002,-1484.33,0.0003315,12]
[369079927,1751459464012,-1516.72,0.0003315,12]
[369079928,1751459464022,-460.0,0.0003315,12]
[369079929,1751459464032,-460.0,0.0003315,12]
[369079930,1751459464042,-2002.08,0.0003315,12]
[369079931,1751459464052,-780.1,0.0003315,12]
[369079932,1751459464062,-2777.15,0.0003315,12]
[369079933,1751459464071,-460.0,0.0003315,12]
[369079934,1751459464081,-1404.78,0.0003315,12]
[369079935,1751459464091,-460.0,0.0003315,12]
[369079936,1751459464100,-1136.06,0.0003315,12]
[369079937,1751459464110,-460.0,0.0003315,12]
[369079938,1751459464119,-520.0,0.0003315,12]
[369079939,1751459464130,-460.0,0.0003315,12]
[369079940,1751459464140,-2409.68,0.0003315,12]
[369079941,1751459464150,-460.0,0.0003315,12]
[369079942,1751459464160,-1441.55,0.0003315,12]
[369079943,1751459464170,-1446.68,0.0003315,12]
[369079944,1751459464180,-520.0,0.0003315,12]
[369079945,1751459464190,-460.0,0.0003315,12]
[369079946,1751459464199,-460.0,0.0003315,12]
[369079947,1751459464209,-1085.6,0.0003315,12]
[369079948,1751459464218,-460.0,0.0003315,12]
[369079949,1751459464228,-460.0,0.0003315,12]
[369079950,1751459464238,-460.0,0.0003315,12]
[369079951,1751459464247,-460.0,0.0003315,12]
[369079952,1751459464257,-574.34621164,0.0003315,12]
[369079953,1751459464266,-1038.63,0.0003315,12]
[369079954,1751459464275,-460.0,0.0003315,12]
[369079955,1751459464285,-460.0,0.0003315,12]
[369079956,1751459464294,-1564.35,0.0003315,12]
[369079957,1751459464304,-1000.0,0.0003315,12]
[369079958,1751459464313,-460.0,0.0003315,12]
[369079959,1751459464323,-1549.15,0.0003315,12]
[369079960,1751459464332,-520.0,0.0003315,12]
[369079961,1751459464342,-520.0,0.0003315,12]
[369079962,1751459464351,-1541.22,0.0003315,12]
[369079963,1751459464360,-570.5,0.0003315,12]
[369079964,1751459464370,-460.0,0.0003315,12]
[369079965,1751459464380,-2696.91,0.0003315,12]
[369079966,1751459464389,-520.0,0.0003315,12]
[369079967,1751459464398,-460.0,0.0003315,12]
[369079968,1751459464407,-460.0,0.0003315,12]
[369079969,1751459464416,-520.0,0.0003315,12]
[369079970,1751459464426,-460.0,0.0003315,12]
[369079971,1751459464436,-554.93,0.0003315,12]
[369079972,1751459464445,-460.0,0.0003315,12]
[369079973,1751459464454,-460.0,0.0003315,12]
[369079974,1751459464463,-460.0,0.0003315,12]
[369079975,1751459464473,-460.0,0.0003315,12]
[369079976,1751459464482,-1524.19,0.0003315,12]
[369079977,1751459464491,-3776.35,0.0003315,12]
[369079978,1751459464501,-1124.72,0.0003315,12]
[369079979,1751459464510,-1122.34,0.0003315,12]
[369079980,1751459464519,-776.12,0.0003315,12]
[369079981,1751459464529,-460.0,0.0003315,12]
[369079982,1751459464538,-527.45,0.0003315,12]
[369079983,1751459464547,-460.0,0.0003315,12]
[369079984,1751459464559,-1353.7,0.0003315,12]
[369079985,1751459464568,-1285.53,0.0003315,12]
[369079986,1751459464578,-1450.37,0.0003315,12]
[369079987,1751459464587,-520.0,0.0003315,12]
[369079988,1751459464596,-2626.14,0.0003315,12]
[369079989,1751459464606,-460.0,0.0003315,12]
[369079990,1751459464615,-460.0,0.0003315,12]
[369079991,1751459464625,-460.0,0.0003315,12]
[369079992,1751459464635,-5850.52,0.0003315,12]
[369079993,1751459464644,-888.96,0.0003315,12]
[369079994,1751459464654,-485.37,0.0003315,12]
[369079995,1751459464664,-460.0,0.0003315,12]
[369079996,1751459464673,-460.0,0.0003315,12]
[369079997,1751459464682,-1110.71,0.0003315,12]
[369079998,1751459464692,-2147.17,0.0003315,12]
[369079999,1751459464701,-460.0,0.0003315,12]
[369080000,1751459464710,-460.0,0.0003315,12]
[369080001,1751459464720,-1092.71,0.0003315,12]
[369080002,1751459464729,-6818.28,0.0003315,12]
[369080003,1751459464739,-953.08,0.0003315,12]
[369080004,1751459464748,-2812.45,0.0003315,12]
[369080005,1751459464758,-520.0,0.0003315,12]
[369080006,1751459464767,-118951.71,0.0003315,12]
[369080007,1751459464777,-460.0,0.0003315,12]
[369080008,1751459464786,-996.72,0.0003315,12]
[369080009,1751459464795,-832.7,0.0003315,12]
[369080010,1751459464804,-460.0,0.0003315,12]
[369080011,1751459464814,-460.0,0.0003315,12]
[369080012,1751459464823,-460.0,0.0003315,12]
[369080013,1751459464832,-1623.92,0.0003315,12]
[369080014,1751459464841,-548.7,0.0003315,12]
[369080015,1751459464851,-460.0,0.0003315,12]
[369080016,1751459464860,-1985.92,0.0003315,12]
[369080017,1751459464869,-996.74,0.0003315,12]
[369080018,1751459464879,-460.0,0.0003315,12]
[369080019,1751459464888,-5467.22,0.0003315,12]
[369080020,1751459464898,-2994.21,0.0003315,12]
[369080021,1751459464907,-5002.01,0.0003315,12]
[369080022,1751459464917,-2349.24,0.0003315,12]
[369080023,1751459464926,-6450.42,0.0003315,12]
[369080024,1751459464936,-460.0,0.0003315,12]
[369080025,1751459464945,-1056.4,0.0003315,12]
[369080026,1751459464954,-460.0,0.0003315,12]
[369080027,1751459464964,-460.0,0.0003315,12]
[369080028,1751459464973,-5750.28,0.0003315,12]
[369080029,1751459464982,-1089.24,0.0003315,12]
[369080030,1751459464992,-1083.75,0.0003315,12]
[369080031,1751459465001,-773.32,0.0003315,12]
[369080032,1751459465010,-513.71,0.0003315,12]
[369080033,1751459465020,-460.0,0.0003315,12]
[369080034,1751459465029,-460.0,0.0003315,12]
[369080035,1751459465039,-6187.21,0.0003315,12]
[369080036,1751459465048,-3844.97,0.0003315,12]
[369080037,1751459465058,-460.0,0.0003315,12]
[369080038,1751459465067,-2077.98,0.0003315,12]
[369080039,1751459465077,-1186.57,0.0003315,12]
[369080040,1751459465086,-851.5,0.0003315,12]
[369080041,1751459465096,-785.12,0.0003315,12]
[369080042,1751459465106,-460.0,0.0003315,12]
[369080043,1751459465115,-460.0,0.0003315,12]
[369080044,1751459465125,-460.0,0.0003315,12]
[369080045,1751459465135,-450.0,0.0003315,12]
[369080046,1751459465144,-2244.04,0.0003315,12]
[369080047,1751459465153,-916.28,0.0003315,12]
[369080048,1751459465163,-460.0,0.0003315,12]
[369080049,1751459465172,-460.0,0.0003315,12]
[369080050,1751459465181,-2974.55,0.0003315,12]
[369080051,1751459465191,-1819.26,0.0003315,12]
[369080052,1751459465200,-520.0,0.0003315,12]
[369080053,1751459465209,-520.0,0.0003315,12]
[369080054,1751459465219,-460.0,0.0003315,12]
[369080055,1751459465228,-701.11,0.0003315,12]
[369080056,1751459465238,-1630.15,0.0003315,12]
[369080057,1751459465248,-2914.46,0.0003315,12]
[369080058,1751459465258,-460.0,0.0003315,12]
[369080059,1751459465267,-481.50533755,0.0003315,12]
[369080060,1751459465276,-982.01,0.0003315,12]
[369080061,1751459465286,-2068.42,0.0003315,12]
[369080062,1751459465296,-502.46,0.0003315,12]
[369080063,1751459465305,-7362.46,0.0003315,12]
[369080064,1751459465314,-3109.76,0.0003315,12]
[369080065,1751459465478,-460.0,0.0003315,12]
[369080066,1751459465493,-460.0,0.0003315,12]
[369080067,1751459465502,-460.0,0.0003315,12]
[369080068,1751459465512,-980.01,0.0003315,12]
[369080069,1751459465522,-460.0,0.0003315,12]
[369080070,1751459465531,-460.0,0.0003315,12]
[369080071,1751459465541,-576.5,0.0003315,12]
[369080072,1751459465550,-460.0,0.0003315,12]
[369080073,1751459465562,-1001.47,0.0003315,12]
[369080074,1751459465571,-460.0,0.0003315,12]
[369080075,1751459465580,-1773.86,0.0003315,12]
[369080076,1751459465590,-460.0,0.0003315,12]
[369080077,1751459465599,-460.0,0.0003315,12]
[369080078,1751459465609,-460.0,0.0003315,12]
[369080079,1751459465618,-460.0,0.0003315,12]
[369080080,1751459465629,-1832.48,0.0003315,12]
[369080081,1751459465639,-520.0,0.0003315,12]
[369080082,1751459465650,-209.04793915,0.00033151,2]
[369080083,1751459465659,-150.0,0.00033181,2]
[369080084,1751459465669,-150.0,0.00033198,2]
[369080085,1751459465679,-277597.52,0.000332,14]
[369080086,1751459465688,-191.86854497,0.00033223,2]
[369080087,1751459465698,-770.03493091,0.00033226,2]
[369080088,1751459465708,-1000.0,0.00033238,7]
[369080089,1751459465717,-150.0,0.00033269,2]
[369080090,1751459465726,-191.86854497,0.00033317,2]
[369080091,1751459465736,-770.03493091,0.00033319,2]
[369080092,1751459465745,-275.61397188,0.00033324,2]
[369080093,1751459465755,-2159.30478376,0.00033324,2]
[369080094,1751459465764,-701.67220228,0.00033324,6]
[369080095,1751459465773,-2724.45235044,0.00033324,2]
[369080096,1751459465782,-300.35729322,0.00033324,2]
[369080097,1751459465793,-13048.8698112,0.00033324,2]
[369080098,1751459465802,-150.0,0.00033333,2]
[369080099,1751459465812,-1534.0,0.00033348,2]
[369080100,1751459465821,-446.0,0.00033348,2]
[369080101,1751459465830,-273.05021975,0.00033361,2]
[369080102,1751459465839,-1000.0,0.00033375,7]
[369080103,1751459465849,-191.86854497,0.00033411,2]
[369080104,1751459465859,-770.03493091,0.00033412,2]
[369080105,1751459465868,-500.0,0.00033424,2]
[369080106,1751459465879,-460.0,0.00033424,12]
[369080107,1751459465888,-554.48738029,0.00033424,12]
[369080108,1751459465899,-292.01300626,0.00033424,12]
[369080109,1751459465909,-460.0,0.00033424,12]
[369080110,1751459465918,-460.0,0.00033424,12]
[369080111,1751459465928,-460.0,0.00033424,12]
[369080112,1751459465937,-460.0,0.00033424,12]
[369080113,1751459465947,-550.0,0.00033424,12]
[369080114,1751459465956,-460.0,0.00033424,12]
[369080115,1751459465966,-460.0,0.00033424,12]
[369080116,1751459465975,-460.0,0.00033424,12]
[369080117,1751459465984,-550.0,0.00033424,12]
[369080118,1751459465994,-460.0,0.00033424,12]
[369080119,1751459466003,-460.0,0.00033424,12]
[369080120,1751459466013,-484.39,0.00033424,12]
[369080121,1751459466023,-186.05971342,0.00033424,12]
[369080122,1751459466034,-460.0,0.00033424,12]
[369080123,1751459466044,-460.0,0.00033424,12]
[369080124,1751459466053,-460.0,0.00033424,12]
[369080125,1751459466063,-550.0,0.00033424,12]
[369080126,1751459466072,-460.0,0.00033424,12]
[369080127,1751459466081,-460.0,0.00033424,12]
[369080128,1751459466091,-460.0,0.00033424,12]
[369080129,1751459466100,-460.0,0.00033424,12]
[369080130,1751459466109,-495.46,0.00033424,12]
[369080131,1751459466119,-550.0,0.00033424,12]
[369080132,1751459466129,-202.19066942,0.00033424,12]
[369080133,1751459466138,-496.82,0.00033424,12]
[369080134,1751459466148,-568.51529388,0.00033424,12]
[369080135,1751459466156,-757.99,0.00033424,12]
[369080136,1751459466166,-460.0,0.00033424,12]
[369080137,1751459466175,-550.0,0.00033424,12]
[369080138,1751459466185,-460.0,0.00033424,12]
[369080139,1751459466194,-460.0,0.00033424,12]
[369080140,1751459466203,-460.0,0.00033424,12]
[369080141,1751459466212,-550.0,0.00033424,12]
[369080142,1751459466222,-460.0,0.00033424,12]
[369080143,1751459466231,-460.0,0.00033424,12]
[369080144,1751459466240,-460.0,0.00033424,12]
[369080145,1751459466252,-460.0,0.00033424,12]
[369080146,1751459466261,-460.0,0.00033424,12]
[369080147,1751459466271,-460.0,0.00033424,12]
[369080148,1751459466280,-460.0,0.00033424,12]
[369080149,1751459466290,-460.0,0.00033424,12]
[369080150,1751459466300,-460.0,0.00033424,12]
[369080151,1751459466309,-552.27,0.00033424,12]
[369080152,1751459466319,-460.0,0.00033424,12]
[369080153,1751459466331,-460.0,0.00033424,12]
[369080154,1751459466341,-460.0,0.00033424,12]
[369080155,1751459466350,-460.0,0.00033424,12]
[369080156,1751459466360,-460.0,0.00033424,12]
[369080157,1751459466369,-460.0,0.00033424,12]
[369080158,1751459466379,-460.0,0.00033424,12]
[369080159,1751459466388,-460.0,0.00033424,12]
[369080160,1751459466397,-460.0,0.00033424,12]
[369080161,1751459466407,-424.48765939,0.00033424,12]
[369080162,1751459466416,-550.0,0.00033424,12]
[369080163,1751459466425,-460.0,0.00033424,12]
[369080164,1751459466434,-460.0,0.00033424,12]
[369080165,1751459466445,-460.0,0.00033424,12]
[369080166,1751459466454,-460.0,0.00033424,7]
[369080167,1751459466463,-550.0,0.00033424,12]
[369080168,1751459466473,-460.0,0.00033424,12]
[369080169,1751459466482,-460.0,0.00033424,12]
[369080170,1751459466492,-470.2,0.00033424,12]
[369080171,1751459466502,-923.56,0.00033424,12]
[369080172,1751459466512,-598.43,0.00033424,12]
[369080173,1751459466521,-460.0,0.00033424,12]
[369080174,1751459466531,-460.0,0.00033424,12]
[369080175,1751459466540,-460.0,0.00033424,12]
[369080176,1751459466550,-460.0,0.00033424,12]
[369080177,1751459466562,-460.0,0.00033424,12]
[369080178,1751459466572,-460.0,0.00033424,12]
[369080179,1751459466581,-460.0,0.00033424,12]
[369080180,1751459466590,-460.0,0.00033424,12]
[369080181,1751459466599,-460.0,0.00033424,12]
[369080182,1751459466609,-460.0,0.00033424,12]
[369080183,1751459466619,-536.37,0.00033424,12]
[369080184,1751459466628,-460.0,0.00033424,12]
[369080185,1751459466638,-460.0,0.00033424,12]
[369080186,1751459466648,-460.0,0.00033424,12]
[369080187,1751459466657,-460.0,0.00033424,12]
[369080188,1751459466666,-460.0,0.00033424,12]
[369080189,1751459466675,-460.0,0.00033424,12]
[369080190,1751459466685,-460.0,0.00033424,12]
[369080191,1751459466694,-274.88581094,0.00033424,12]
[369080192,1751459466703,-481.51,0.00033424,12]
[369080193,1751459466712,-460.0,0.00033424,12]
[369080194,1751459466722,-550.0,0.00033424,12]
[369080195,1751459466732,-499.77,0.00033424,12]
[369080196,1751459466741,-512.13,0.00033424,12]
[369080197,1751459466750,-683.53,0.00033424,12]
[369080198,1751459466759,-296.46182096,0.00033424,12]
[369080199,1751459466768,-460.0,0.00033424,12]
[369080200,1751459466777,-520.09,0.00033424,12]
[369080201,1751459466786,-460.0,0.00033424,12]
[369080202,1751459466796,-460.0,0.00033424,12]
[369080203,1751459466804,-551.88387733,0.00033424,12]
[369080204,1751459466814,-460.0,0.00033424,12]
[369080205,1751459466824,-222.60967868,0.00033424,12]
[369080206,1751459466833,-550.0,0.00033424,12]
[369080207,1751459466842,-460.0,0.00033424,12]
[369080208,1751459466852,-460.0,0.00033424,12]
[369080209,1751459466861,-460.0,0.00033424,12]
[369080210,1751459466871,-460.0,0.00033424,12]
[369080211,1751459466880,-550.0,0.00033424,12]
[369080212,1751459466889,-483.12,0.00033424,12]
[369080213,1751459466898,-460.0,0.00033424,12]
[369080214,1751459466908,-550.0,0.00033424,12]
[369080215,1751459466917,-460.0,0.00033424,12]
[369080216,1751459466926,-551.28639655,0.00033424,12]
[369080217,1751459466935,-460.0,0.00033424,12]
[369080218,1751459466945,-550.0,0.00033424,12]
[369080219,1751459466954,-460.0,0.00033424,12]
[369080220,1751459466963,-460.0,0.00033424,12]
[369080221,1751459466972,-460.0,0.00033424,12]
[369080222,1751459466982,-460.0,0.00033424,12]
[369080223,1751459466991,-460.0,0.00033424,12]
[369080224,1751459467001,-553.60549208,0.00033424,12]
[369080225,1751459467010,-615.38,0.00033424,12]
[369080226,1751459467019,-598.58975834,0.00033424,12]
[369080227,1751459467029,-460.0,0.00033424,12]
[369080228,1751459467038,-460.0,0.00033424,12]
[369080229,1751459467047,-460.0,0.00033424,12]
[369080230,1751459467057,-460.0,0.00033424,12]
[369080231,1751459467066,-550.0,0.00033424,12]
[369080232,1751459467075,-460.0,0.00033424,12]
[369080233,1751459467085,-553.37635139,0.00033424,12]
[369080234,1751459467094,-550.0,0.00033424,12]
[369080235,1751459467104,-270.0,0.00033424,12]
[369080236,1751459467113,-460.0,0.00033424,12]
[369080237,1751459467122,-460.0,0.00033424,12]
[369080238,1751459467131,-460.0,0.00033424,12]
[369080239,1751459467140,-460.0,0.00033424,12]
[369080240,1751459467150,-460.0,0.00033424,12]
[369080241,1751459467158,-550.0,0.00033424,12]
[369080242,1751459467168,-554.13139503,0.00033424,7]
[369080243,1751459467177,-460.0,0.00033424,12]
[369080244,1751459467186,-460.0,0.00033424,12]
[369080245,1751459467195,-550.0,0.00033424,12]
[369080246,1751459467204,-550.0,0.00033424,12]
[369080247,1751459467213,-460.0,0.00033424,12]
[369080248,1751459467223,-460.0,0.00033424,12]
[369080249,1751459467233,-460.0,0.00033424,12]
[369080250,1751459467242,-460.0,0.00033424,12]
[369080251,1751459467252,-460.0,0.00033424,12]
[369080252,1751459467261,-460.0,0.00033424,12]
[369080253,1751459467271,-460.0,0.00033424,12]
[369080254,1751459467280,-530.3,0.00033424,12]
[369080255,1751459467289,-460.0,0.00033424,12]
[369080256,1751459467299,-555.87311417,0.00033424,12]
[369080257,1751459467308,-460.0,0.00033424,12]
[369080258,1751459467318,-460.0,0.00033424,12]
[369080259,1751459467327,-550.0,0.00033424,12]
[369080260,1751459467336,-460.0,0.00033424,12]
[369080261,1751459467345,-460.0,0.00033424,12]
[369080262,1751459467355,-460.0,0.00033424,12]
[369080263,1751459467364,-460.0,0.00033424,12]
[369080264,1751459467373,-672.34,0.00033424,12]
[369080265,1751459467382,-460.0,0.00033424,12]
[369080266,1751459467391,-460.0,0.00033424,12]
[369080267,1751459467400,-460.0,0.00033424,12]
[369080268,1751459467410,-300.0,0.00033424,12]
[369080269,1751459467419,-545.27,0.00033424,12]
[369080270,1751459467429,-1054.77,0.00033424,10]
[369080271,1751459467438,-460.0,0.00033424,12]
[369080272,1751459467447,-460.0,0.00033424,12]
[369080273,1751459467457,-991.92,0.00033424,12]
[369080274,1751459467466,-460.0,0.00033424,12]
[369080275,1751459467475,-460.0,0.00033424,12]
[369080276,1751459467484,-460.0,0.00033424,12]
[369080277,1751459467494,-460.0,0.00033424,12]
[369080278,1751459467503,-550.0,0.00033424,12]
[369080279,1751459467513,-460.0,0.00033424,12]
[369080280,1751459467522,-473.64,0.00033424,12]
[369080281,1751459467531,-460.0,0.00033424,12]
[369080282,1751459467541,-487.94,0.00033424,12]
[369080283,1751459467550,-460.0,0.00033424,12]
[369080284,1751459467563,-460.0,0.00033424,12]
[369080285,1751459467572,-460.0,0.00033424,12]
[369080286,1751459467582,-460.0,0.00033424,12]
[369080287,1751459467591,-460.0,0.00033424,12]
[369080288,1751459467602,-460.0,0.00033424,12]
[369080289,1751459467611,-460.0,0.00033424,12]
[369080290,1751459467620,-222.60204206,0.00033424,12]
[369080291,1751459467631,-460.0,0.00033424,12]
[369080292,1751459467640,-557.64828727,0.00033424,12]
[369080293,1751459467650,-460.0,0.00033424,12]
[369080294,1751459467659,-460.0,0.00033424,12]
[369080295,1751459467669,-553.49912821,0.00033424,12]
[369080296,1751459467678,-460.0,0.00033424,12]
[369080297,1751459467687,-460.0,0.00033424,12]
[369080298,1751459467697,-460.0,0.00033424,12]
[369080299,1751459467706,-460.0,0.00033424,12]
[369080300,1751459467715,-460.0,0.00033424,12]
[369080301,1751459467724,-460.0,0.00033424,12]
[369080302,1751459467734,-336.34651089,0.00033424,12]
[369080303,1751459467743,-460.0,0.00033424,12]
[369080304,1751459467752,-460.0,0.00033424,12]
[369080305,1751459467761,-551.68982797,0.00033424,12]
[369080306,1751459467770,-460.0,0.00033424,12]
[369080307,1751459467926,-471.23,0.00033424,12]
[369080308,1751459467936,-460.0,0.00033424,12]
[369080309,1751459467945,-460.0,0.00033424,12]
[369080310,1751459467955,-481.08,0.00033424,12]
[369080311,1751459467964,-460.0,0.00033424,12]
[369080312,1751459467973,-460.0,0.00033424,12]
[369080313,1751459467983,-460.0,0.00033424,12]
[369080314,1751459467993,-460.0,0.00033424,12]
[369080315,1751459468003,-460.0,0.00033424,12]
[369080316,1751459468012,-460.0,0.00033424,12]
[369080317,1751459468022,-460.0,0.00033424,12]
[369080318,1751459468031,-460.0,0.00033424,12]
[369080319,1751459468040,-460.0,0.00033424,12]
[369080320,1751459468049,-460.0,0.00033424,12]
[369080321,1751459468058,-460.0,0.00033424,12]
[369080322,1751459468068,-460.0,0.00033424,12]
[369080323,1751459468078,-460.0,0.00033424,12]
[369080324,1751459468087,-500.0,0.00033424,12]
[369080325,1751459468096,-460.0,0.00033424,12]
[369080326,1751459468105,-964.53,0.00033424,12]
[369080327,1751459468114,-460.0,0.00033424,12]
[369080328,1751459468123,-217.154687,0.00033424,12]
[369080329,1751459468132,-460.0,0.00033424,12]
[369080330,1751459468142,-1339.56,0.00033424,12]
[369080331,1751459468151,-460.0,0.00033424,12]
[369080332,1751459468160,-460.0,0.00033424,12]
[369080333,1751459468169,-460.0,0.00033424,12]
[369080334,1751459468178,-460.0,0.00033424,12]
[369080335,1751459468188,-460.0,0.00033424,12]
[369080336,1751459468197,-460.0,0.00033424,12]
[369080337,1751459468206,-460.0,0.00033424,12]
[369080338,1751459468215,-460.0,0.00033424,12]
[369080339,1751459468225,-460.0,0.00033424,12]
[369080340,1751459468234,-460.0,0.00033424,12]
[369080341,1751459468244,-460.0,0.00033424,12]
[369080342,1751459468253,-1145.3,0.00033424,12]
[369080343,1751459468262,-460.0,0.00033424,12]
[369080344,1751459468272,-562.91,0.00033424,12]
[369080345,1751459468281,-460.0,0.00033424,12]
[369080346,1751459468291,-159.95162543,0.00033424,12]
[369080347,1751459468300,-460.0,0.00033424,12]
[369080348,1751459468311,-508.65,0.00033424,12]
[369080349,1751459468321,-527.14,0.00033424,12]
[369080350,1751459468330,-460.0,0.00033424,12]
[369080351,1751459468339,-460.0,0.00033424,12]
[369080352,1751459468348,-815.93,0.00033424,12]
[369080353,1751459468357,-495.73,0.00033424,12]
[369080354,1751459468366,-460.0,0.00033424,12]
[369080355,1751459468377,-460.0,0.00033424,12]
[369080356,1751459468386,-827.74,0.00033424,12]
[369080357,1751459468395,-553.41392031,0.00033424,12]
[369080358,1751459468405,-460.0,0.00033424,12]
[369080359,1751459468415,-460.0,0.00033424,12]
[369080360,1751459468425,-979.03,0.00033424,12]
[369080361,1751459468435,-460.0,0.00033424,12]
[369080362,1751459468444,-460.0,0.00033424,12]
[369080363,1751459468454,-460.0,0.00033424,12]
[369080364,1751459468463,-460.0,0.00033424,12]
[369080365,1751459468472,-550.0,0.00033424,12]
[369080366,1751459468481,-509.11,0.00033424,12]
[369080367,1751459468491,-323.19276569,0.00033424,12]
[369080368,1751459468501,-460.0,0.00033424,12]
[369080369,1751459468510,-954.29,0.00033424,12]
[369080370,1751459468519,-460.0,0.00033424,12]
[369080371,1751459468528,-460.0,0.00033424,12]
[369080372,1751459468538,-460.0,0.00033424,12]
[369080373,1751459468547,-460.0,0.00033424,12]
[369080374,1751459468561,-1219.47,0.00033424,12]